bitfinex-derivatives/quotes_BTCF0:USTF0_20250811
["timestamp","ask_amount","ask_price","bid_price","bid_amount"]
[1754889788069,3.00053819,121930.0,121920.0,0.95796434]
[1754889788766,3.00053819,121930.0,121920.0,0.69516434]
[1754889788964,3.00053819,121930.0,121920.0,0.77719764]
[1754889789164,2.7099573,121930.0,121920.0,0.69516434]
[1754889789371,3.00053819,121930.0,121920.0,0.77719764]
[1754889789571,3.00053819,121930.0,121920.0,0.69516434]
[1754889790070,3.00053819,121930.0,121920.0,0.77719764]
[1754889790271,3.00053819,121930.0,121920.0,0.69516434]
[1754889790766,2.7099573,121930.0,121920.0,0.52480434]
[1754889790967,3.00053819,121930.0,121920.0,0.45063434]
[1754889791173,3.00053819,121930.0,121920.0,0.68473145]
[1754889791768,2.24961819,121930.0,121920.0,0.44020145]
[1754889791969,3.00049819,121930.0,121920.0,0.44020145]
[1754889792268,2.24961819,121930.0,121920.0,0.33383785]
[1754889792971,3.00049819,121930.0,121920.0,0.38162785]
[1754889793368,3.00049819,121930.0,121920.0,0.14753074]
[1754889794073,3.00249819,121930.0,121920.0,0.14753074]
[1754889794466,3.00253819,121930.0,121920.0,0.09974074]
[1754889794671,3.00253819,121930.0,121920.0,0.09874074]
[1754889794672,3.00349819,121930.0,121920.0,0.09874074]
[1754889795874,2.25261819,121930.0,121920.0,0.09874074]
[1754889796078,3.00349819,121930.0,121920.0,0.09874074]
[1754889796372,3.00349819,121930.0,121920.0,0.14653074]
[1754889796576,3.00349819,121930.0,121920.0,0.09874074]
[1754889797474,2.7129173,121930.0,121920.0,0.09874074]
[1754889797677,3.00349819,121930.0,121920.0,0.09874074]
[1754889798073,2.25261819,121930.0,121920.0,0.09874074]
[1754889798273,3.00349819,121930.0,121920.0,0.09874074]
[1754889799780,2.25261819,121930.0,121920.0,0.09874074]
[1754889799973,3.00353819,121930.0,121920.0,0.09874074]
[1754889801574,3.00353819,121930.0,121920.0,0.14653074]
[1754889801776,2.25261819,121930.0,121920.0,0.09874074]
[1754889801979,3.29407908,121930.0,121920.0,0.09874074]
[1754889802783,2.54319908,121930.0,121920.0,0.09874074]
[1754889802984,3.29407908,121930.0,121920.0,0.09874074]
[1754889804679,2.54319908,121930.0,121920.0,0.09874074]
[1754889804980,3.29407908,121930.0,121920.0,0.05382324]
[1754889805278,3.29407908,121930.0,121920.0,0.10177838]
[1754889805681,3.29407908,121930.0,121920.0,0.12808551]
[1754889806279,2.54319908,121930.0,121920.0,0.09017421]
[1754889806483,3.29407908,121930.0,121920.0,0.03024364]
[1754889806673,3.29407908,121930.0,121920.0,0.12538537]
[1754889808079,2.54319908,121930.0,121920.0,0.12538537]
[1754889808380,3.29403908,121930.0,121920.0,0.12538537]
[1754889808980,3.29403908,121930.0,121920.0,0.09890917]
[1754889809179,3.29403908,121930.0,121920.0,0.1527964]
[1754889809478,3.29403908,121930.0,121920.0,0.1100234]
[1754889809876,3.29403908,121930.0,121920.0,0.11012312]
[1754889810083,3.29403908,121930.0,121920.0,0.06181632]
[1754889810282,2.54319908,121930.0,121920.0,0.12292266]
[1754889810471,2.54319908,121930.0,121900.0,0.01800338]
[1754889810472,0.3208385,121910.0,121900.0,0.01800338]
[1754889810674,2.09239939,121910.0,121900.0,0.01800338]
[1754889810883,2.09239939,121910.0,121900.0,0.22294365]
[1754889811378,2.09239939,121910.0,121900.0,0.22304737]
[1754889811877,2.09239939,121910.0,121900.0,0.22404737]
[1754889812481,1.34155939,121910.0,121900.0,0.22404737]
[1754889812677,1.34155939,121910.0,121900.0,0.64577737]
[1754889812871,2.09235939,121910.0,121900.0,0.64577737]
[1754889813484,2.09235939,121910.0,121900.0,0.20604399]
[1754889813878,2.09235939,121910.0,121900.0,0.25383399]
[1754889814776,1.34155939,121910.0,121900.0,0.20604399]
[1754889814977,2.09235939,121910.0,121900.0,0.20604399]
[1754889816974,1.34155939,121910.0,121900.0,0.20604399]
[1754889817177,2.09235939,121910.0,121900.0,0.20604399]
[1754889817382,2.09235939,121910.0,121900.0,0.19248318]
[1754889817888,0.1290487,121890.0,121880.0,0.40205]
[1754889818182,2.03048959,121890.0,121880.0,0.49889589]
[1754889818383,2.03048959,121890.0,121880.0,0.58094044]
[1754889818983,2.03048959,121890.0,121880.0,0.58101072]
[1754889819179,2.03874248,121890.0,121880.0,0.58201072]
[1754889819581,2.03874248,121890.0,121880.0,0.58601072]
[1754889819983,1.28790248,121890.0,121880.0,0.58601072]
[1754889820183,2.03870248,121890.0,121880.0,0.58601072]
[1754889821786,2.03874248,121890.0,121880.0,0.58601072]
[1754889823682,1.28790248,121890.0,121880.0,0.58601072]
[1754889823981,0.81200159,121890.0,121880.0,0.58601072]
[1754889824173,1.56280159,121890.0,121880.0,0.58601072]
[1754889824378,1.56280159,121890.0,121880.0,0.87659161]
[1754889824379,0.81200159,121890.0,121880.0,0.87659161]
[1754889824577,1.56280159,121890.0,121880.0,0.87659161]
[1754889825386,1.56280159,121890.0,121880.0,0.58601072]
[1754889826383,0.81200159,121890.0,121880.0,1.21293213]
[1754889826589,1.56280159,121890.0,121880.0,1.21293213]
[1754889828687,1.56276159,121890.0,121880.0,0.84029554]
[1754889829478,1.66275159,121890.0,121880.0,0.84029554]
[1754889829883,1.24090248,121890.0,121880.0,0.25478374]
[1754889830085,1.99162248,121890.0,121880.0,0.54798374]
[1754889830290,1.99162248,121890.0,121880.0,0.25478374]
[1754889831291,1.24090248,121890.0,121880.0,0.25478374]
[1754889831484,1.99162248,121890.0,121880.0,0.25478374]
[1754889833088,1.99162248,121890.0,121880.0,0.47367374]
[1754889833389,1.99162248,121890.0,121880.0,0.69650374]
[1754889833585,1.24090248,121890.0,121880.0,0.69650374]
[1754889833793,1.99162248,121890.0,121880.0,0.69650374]
[1754889834890,1.24090248,121890.0,121880.0,0.69650374]
[1754889835189,1.99162248,121890.0,121880.0,0.69650374]
[1754889835589,1.20257248,121890.0,121880.0,0.69650374]
[1754889835786,0.91199159,121890.0,121880.0,0.69650374]
[1754889835993,1.56272159,121890.0,121880.0,0.87171755]
[1754889836289,1.56272159,121890.0,121880.0,1.16229844]
[1754889836494,1.56272159,121890.0,121880.0,0.87171755]
[1754889836690,0.81200159,121890.0,121880.0,1.16229844]
[1754889836896,1.47242,121890.0,121880.0,1.32638643]
[1754889837488,1.47242,121890.0,121880.0,1.82638643]
[1754889837988,1.5544635,121890.0,121880.0,1.82638643]
[1754889838187,0.8037435,121890.0,121880.0,1.53580554]
[1754889838494,1.56284667,121890.0,121880.0,1.53580554]
[1754889838897,1.5544635,121890.0,121880.0,1.53580554]
[1754889840397,0.7217,121890.0,121880.0,1.53580554]
[1754889840696,0.7217,121890.0,121880.0,1.82781364]
[1754889840697,1.47234,121890.0,121880.0,1.82781364]
[1754889840890,1.11154,121890.0,121880.0,1.82781364]
[1754889841590,0.75074,121890.0,121880.0,2.18861364]
[1754889841795,1.1336,121900.0,121890.0,0.5689036]
[1754889841995,0.21114744,121900.0,121890.0,1.22037924]
[1754889842193,0.13613744,121900.0,121890.0,1.59730922]
[1754889842396,0.88673744,121900.0,121890.0,1.67934703]
[1754889842586,0.4912534,121920.0,121910.0,0.1275801]
[1754889842587,0.40923,121920.0,121910.0,0.1275801]
[1754889842796,1.15983,121920.0,121910.0,0.2018901]
[1754889842997,1.2419534,121920.0,121910.0,0.70252003]
[1754889843195,1.4094234,121920.0,121910.0,0.78455784]
[1754889843500,1.4427534,121920.0,121910.0,0.78455784]
[1754889843899,0.722,121920.0,121910.0,0.78455784]
[1754889844098,0.8040235,121920.0,121910.0,1.01904756]
[1754889844296,1.5545835,121920.0,121910.0,1.01904756]
[1754889844796,1.21858439,121920.0,121910.0,0.93701746]
[1754889844988,1.21858439,121920.0,121910.0,1.14543795]
[1754889845196,1.97110439,121920.0,121910.0,1.14543795]
[1754889845394,1.6795235,121920.0,121910.0,1.14543795]
[1754889845604,1.6795235,121920.0,121910.0,1.14743795]
[1754889845998,1.6775235,121920.0,121910.0,1.14743795]
[1754889846802,0.9270035,121920.0,121910.0,1.14743795]
[1754889847003,1.6785235,121920.0,121910.0,1.14743795]
[1754889847301,0.9280035,121920.0,121910.0,1.14743795]
[1754889847497,1.50916528,121920.0,121910.0,0.9421637]
[1754889847700,1.96902439,121920.0,121910.0,0.9882737]
[1754889847894,0.9280035,121920.0,121910.0,1.22822643]
[1754889848096,1.6784435,121920.0,121910.0,0.99373671]
[1754889848601,1.6784435,121920.0,121910.0,0.49373671]
[1754889852104,1.6784035,121920.0,121910.0,0.49373671]
[1754889852298,0.9280035,121920.0,121910.0,0.49373671]
[1754889852498,0.9231635,121920.0,121910.0,0.49373671]
[1754889852706,1.6735235,121920.0,121910.0,0.49373671]
[1754889853206,0.9231635,121920.0,121910.0,0.49373671]
[1754889853407,1.6735235,121920.0,121910.0,0.49373671]
[1754889853800,1.5915,121920.0,121910.0,1.0471176]
[1754889854706,1.5915,121920.0,121910.0,0.75653671]
[1754889854908,0.84114,121920.0,121910.0,0.75653671]
[1754889855101,1.6735234,121920.0,121910.0,0.75653671]
[1754889855302,1.21374429,121920.0,121910.0,0.64187671]
[1754889855502,1.96406429,121920.0,121910.0,1.3759762]
[1754889855704,1.96306429,121920.0,121910.0,1.2949461]
[1754889856298,1.21274429,121920.0,121910.0,1.2949461]
[1754889856496,1.96306429,121920.0,121910.0,1.2949461]
[1754889857010,1.96306429,121920.0,121910.0,0.7949461]
[1754889857504,1.96306429,121920.0,121910.0,0.56084661]
[1754889858107,1.96306429,121920.0,121910.0,0.26084661]
[1754889858406,1.96306429,121920.0,121870.0,0.5228541]
[1754889858407,0.2468075,121870.0,121860.0,0.1616]
[1754889858598,1.25908839,121870.0,121860.0,0.3566]
[1754889858798,1.25908839,121870.0,121860.0,0.13344639]
[1754889858799,2.00936839,121870.0,121860.0,0.13344639]
[1754889858998,0.7547,121870.0,121860.0,0.84654036]
[1754889859208,1.6367271,121870.0,121860.0,0.76456906]
[1754889859711,1.6367271,121870.0,121860.0,1.26656906]
[1754889860009,1.6367271,121870.0,121860.0,1.27056906]
[1754889860405,0.8864471,121870.0,121860.0,1.27056906]
[1754889860598,1.6367671,121870.0,121860.0,1.27056906]
[1754889862112,1.6367671,121870.0,121860.0,1.35263266]
[1754889862611,1.6367671,121870.0,121860.0,1.27056906]
[1754889863412,1.6367671,121870.0,121860.0,1.50466855]
[1754889865513,1.6367671,121870.0,121860.0,1.27056906]
[1754889866610,1.6367671,121870.0,121860.0,1.35263276]
[1754889866817,1.6367671,121870.0,121860.0,1.27056906]
[1754889867308,0.3608,121860.0,121850.0,0.23409949]
[1754889867510,0.0820839,121830.0,121820.0,0.69464951]
[1754889867718,1.13120103,121830.0,121820.0,0.33804951]
[1754889867909,1.88756103,121830.0,121820.0,0.54261807]
[1754889868306,1.13120103,121830.0,121820.0,0.49614807]
[1754889868511,1.13120103,121830.0,121790.0,0.27955]
[1754889868512,0.0771041,121800.0,121790.0,0.04647]
[1754889868806,0.0821176,121780.0,121770.0,0.76035609]
[1754889869117,1.90144462,121780.0,121770.0,1.05093599]
[1754889869307,1.14256462,121780.0,121770.0,0.54649192]
[1754889869513,1.89974642,121780.0,121770.0,1.04506354]
[1754889869817,1.89874642,121780.0,121770.0,1.04506354]
[1754889870015,1.5549994,121780.0,121770.0,1.04506354]
[1754889870414,1.5549994,121780.0,121770.0,0.70547008]
[1754889870415,1.13850642,121780.0,121770.0,0.70547008]
[1754889870615,1.89566642,121780.0,121770.0,0.70647008]
[1754889870811,1.5549994,121780.0,121770.0,1.17809008]
[1754889871121,0.7977594,121780.0,121770.0,0.67809008]
[1754889871514,0.80582603,121780.0,121770.0,0.67809008]
[1754889871715,0.81382603,121780.0,121770.0,0.67909008]
[1754889871920,0.8057594,121780.0,121770.0,0.76121438]
[1754889872215,1.5632394,121780.0,121770.0,0.67909008]
[1754889872421,0.8057594,121780.0,121770.0,0.67909008]
[1754889872628,1.5631594,121780.0,121770.0,0.20747008]
[1754889872916,1.14650642,121780.0,121770.0,0.25394008]
[1754889873121,0.8057594,121780.0,121770.0,0.69266438]
[1754889873317,1.5630794,121780.0,121770.0,0.61054008]
[1754889873622,1.5629994,121780.0,121770.0,0.25394008]
[1754889873821,1.14650642,121780.0,121770.0,0.16709118]
[1754889874022,1.90370642,121780.0,121770.0,0.16709118]
[1754889874319,0.8057594,121780.0,121770.0,0.21356118]
[1754889874619,1.5714608,121780.0,121770.0,0.21356118]
[1754889874821,1.5714608,121780.0,121770.0,0.21366136]
[1754889875025,1.91224782,121780.0,121770.0,0.16719136]
[1754889875225,1.15452782,121780.0,121770.0,0.16719136]
[1754889875523,1.91220782,121780.0,121770.0,0.16719136]
[1754889875916,1.15452782,121780.0,121770.0,0.16719136]
[1754889876112,1.5713808,121780.0,121770.0,0.21532136]
[1754889876624,0.8137808,121780.0,121770.0,0.64358136]
[1754889876824,1.5713408,121780.0,121770.0,0.64358136]
[1754889877024,1.5713408,121780.0,121770.0,0.57360136]
[1754889877522,1.5713408,121780.0,121770.0,0.64358136]
[1754889877832,1.5713408,121780.0,121770.0,0.64258136]
[1754889877833,1.5634608,121780.0,121770.0,0.64258136]
[1754889878127,1.5734608,121780.0,121770.0,0.40723136]
[1754889878321,1.5734608,121780.0,121770.0,0.21532136]
[1754889878918,0.8157808,121780.0,121770.0,0.21532136]
[1754889879120,1.5733808,121780.0,121770.0,0.21532136]
[1754889879523,1.5733808,121780.0,121770.0,0.46381556]
[1754889879827,0.7317,121780.0,121770.0,1.32268941]
[1754889880016,1.48926,121780.0,121770.0,1.32268941]
[1754889880820,1.43922,121780.0,121770.0,1.32268941]
[1754889881017,1.13352,121790.0,121780.0,0.2740269]
[1754889881227,1.89096,121790.0,121780.0,0.89933648]
[1754889881431,1.89104,121790.0,121780.0,1.63881432]
[1754889881722,0.48352,121790.0,121780.0,1.77084367]
[1754889881935,0.28979795,121810.0,121800.0,0.1919836]
[1754889882115,1.09307795,121810.0,121800.0,0.53282139]
[1754889882318,1.09307795,121810.0,121800.0,0.75038866]
[1754889882521,1.09307795,121810.0,121800.0,0.83248709]
[1754889882926,1.04727795,121810.0,121800.0,0.83248709]
[1754889883322,1.04727795,121810.0,121800.0,0.95184007]
[1754889883323,1.41789435,121810.0,121800.0,0.95184007]
[1754889883921,1.33579795,121810.0,121800.0,0.95184007]
[1754889884120,1.41789435,121810.0,121800.0,0.95184007]
[1754889884530,1.41789435,121810.0,121800.0,1.03049007]
[1754889884718,1.41389435,121810.0,121800.0,1.03049007]
[1754889884918,1.41589435,121810.0,121800.0,1.03149007]
[1754889886636,0.85192435,121810.0,121800.0,0.80075647]
[1754889886830,1.19267137,121810.0,121800.0,0.70564456]
[1754889887221,0.2755065,121780.0,121770.0,0.36743819]
[1754889887421,1.6783465,121780.0,121770.0,0.31642849]
[1754889887723,0.9209465,121780.0,121770.0,0.2594241]
[1754889887923,1.6784265,121780.0,121770.0,0.20682211]
[1754889888132,0.9209465,121780.0,121770.0,0.20539362]
[1754889888334,1.6784665,121780.0,121770.0,0.20549232]
[1754889888634,1.6794265,121780.0,121770.0,0.21049232]
[1754889888819,0.60095,121780.0,121770.0,0.37126512]
[1754889889023,0.40891,121780.0,121770.0,1.20299663]
[1754889889224,1.16627,121780.0,121770.0,1.20299663]
[1754889889528,1.16727,121780.0,121770.0,1.70099663]
[1754889889827,1.16927,121780.0,121770.0,1.69899663]
[1754889890420,0.36559,121780.0,121770.0,1.69899663]
[1754889890624,1.5661062,121780.0,121770.0,1.35824961]
[1754889890825,1.6362262,121780.0,121770.0,1.35824961]
[1754889891135,1.6362262,121780.0,121770.0,1.69899663]
[1754889891334,1.6362262,121780.0,121770.0,1.35824961]
[1754889891827,0.9249462,121780.0,121770.0,0.70649232]
[1754889892034,1.6825062,121780.0,121770.0,0.70649232]
[1754889892334,1.6833862,121780.0,121770.0,0.70649232]
[1754889893329,0.9249462,121780.0,121770.0,0.70649232]
[1754889893528,1.6831462,121780.0,121770.0,0.70649232]
[1754889894836,0.9249462,121780.0,121770.0,0.78514232]
[1754889895040,0.9249462,121780.0,121770.0,1.26500522]
[1754889895238,1.60083,121780.0,121770.0,0.85045241]
[1754889895439,0.9249462,121780.0,121770.0,0.85045241]
[1754889895640,1.6829462,121780.0,121770.0,1.19119943]
[1754889895938,1.6830662,121780.0,121770.0,1.19119943]
[1754889896342,0.84283,121780.0,121770.0,1.19119943]
[1754889896538,1.36191,121780.0,121770.0,1.19119943]
[1754889896943,1.6127862,121780.0,121770.0,1.19119943]
[1754889897132,1.6829062,121780.0,121770.0,0.85045241]
[1754889897334,0.3648,121780.0,121770.0,1.19119943]
[1754889897638,0.76184,121780.0,121770.0,1.69262791]
[1754889898542,0.76188,121780.0,121770.0,1.69262791]
[1754889900342,0.004,121780.0,121770.0,1.69262791]
[1754889900545,0.004,121780.0,121770.0,2.21756921]
[1754889901041,0.76164,121780.0,121770.0,2.21756921]
[1754889903743,0.69063795,121780.0,121770.0,2.21756921]
[1754889903944,0.69063795,121780.0,121770.0,1.87682219]
[1754889904148,0.69063795,121780.0,121770.0,2.21756921]
[1754889904545,0.47803,121800.0,121790.0,0.5584991]
[1754889904746,1.23515,121800.0,121790.0,0.89931237]
[1754889905047,1.23515,121800.0,121790.0,1.11405083]
[1754889905264,1.23515,121800.0,121790.0,1.19616949]
[1754889905745,1.23715,121800.0,121790.0,1.19616949]
[1754889905943,0.48103,121800.0,121790.0,1.19716949]
[1754889906142,0.48103,121800.0,121790.0,1.36137749]
[1754889906143,0.003,121800.0,121790.0,1.36137749]
[1754889906445,0.003,121800.0,121790.0,2.23023152]
[1754889906639,0.75992,121800.0,121790.0,2.23023152]
[1754889906838,0.003,121800.0,121790.0,2.23023152]
[1754889907142,0.003,121800.0,121790.0,2.23416527]
[1754889907846,0.001,121800.0,121790.0,2.23416527]
[1754889908046,1.70446,121830.0,121820.0,0.2371089]
[1754889908241,1.77568,121830.0,121820.0,0.89294479]
[1754889908440,2.53244,121830.0,121820.0,1.10991523]
[1754889908947,2.53244,121830.0,121820.0,1.19200018]
[1754889909447,2.53344,121830.0,121820.0,1.69200018]
[1754889909642,2.53544,121830.0,121820.0,1.75786965]
[1754889910740,1.94391,121830.0,121820.0,1.90467731]
[1754889911147,2.1033,121830.0,121820.0,1.90467731]
[1754889911344,2.17452,121830.0,121820.0,1.90467731]
[1754889911849,2.17424,121830.0,121820.0,1.90467731]
[1754889914443,2.10302,121830.0,121820.0,2.26547731]
[1754889914649,0.003,121830.0,121820.0,2.42955644]
[1754889914848,0.7588,121830.0,121820.0,2.28274878]
[1754889915147,0.003,121830.0,121820.0,2.28274878]
[1754889915344,0.7588,121830.0,121820.0,2.28274878]
[1754889916150,0.7578,121830.0,121820.0,2.28374878]
[1754889917048,0.46636187,121850.0,121840.0,0.5520955]
[1754889917248,1.22188187,121850.0,121840.0,1.08333629]
[1754889917451,1.22188187,121850.0,121840.0,1.29238723]
[1754889917651,1.22188187,121850.0,121840.0,1.37445871]
[1754889917849,0.46636187,121850.0,121840.0,1.37445871]
[1754889918051,1.22180187,121850.0,121840.0,1.37445871]
[1754889918451,1.22180187,121850.0,121840.0,1.03371169]
[1754889918752,1.22180187,121850.0,121840.0,1.37445871]
[1754889919648,1.00032905,121850.0,121840.0,1.18406654]
[1754889919854,1.00032905,121850.0,121840.0,1.3743506]
[1754889920154,1.00032905,121850.0,121840.0,1.53360358]
[1754889920549,1.00032905,121850.0,121840.0,1.8743506]
[1754889921047,1.00032905,121850.0,121840.0,1.53360358]
[1754889921648,1.21058905,121850.0,121840.0,1.53360358]
[1754889922352,1.21058905,121850.0,121840.0,1.34331952]
[1754889922854,1.16071905,121850.0,121840.0,1.68406654]
[1754889923354,1.21058905,121850.0,121840.0,1.68406654]
[1754889923653,1.21058905,121850.0,121840.0,1.87449577]
[1754889924045,0.001,121850.0,121840.0,1.87439417]
[1754889924245,0.75548,121850.0,121840.0,2.39933817]
[1754889924442,1.06139,121850.0,121840.0,1.95646597]
[1754889924644,1.06139,121850.0,121840.0,1.76603674]
[1754889924844,1.06139,121850.0,121840.0,1.76610935]
[1754889925655,1.06139,121850.0,121840.0,1.76810935]
[1754889926252,1.06139,121850.0,121840.0,1.76710935]
[1754889926451,1.22078,121850.0,121840.0,1.76710935]
[1754889927252,1.22078,121850.0,121840.0,2.12790935]
[1754889927960,1.17091,121850.0,121840.0,2.12790935]
[1754889928160,1.22078,121850.0,121840.0,2.12690935]
[1754889928361,1.22078,121850.0,121840.0,2.12790935]
[1754889930055,1.09969,121850.0,121840.0,2.12790935]
[1754889930263,0.9403,121850.0,121840.0,2.12790935]
[1754889930562,0.83409,121850.0,121840.0,2.12790935]
[1754889930758,1.77544,121870.0,121860.0,0.47002]
[1754889930954,2.52916,121870.0,121860.0,0.89293516]
[1754889931155,2.45815795,121870.0,121860.0,1.10457339]
[1754889931460,2.45815795,121870.0,121860.0,1.18664487]
[1754889931657,2.45815795,121870.0,121860.0,1.68664487]
[1754889931858,1.70543795,121870.0,121860.0,1.68664487]
[1754889932155,2.45907795,121870.0,121860.0,1.68664487]
[1754889932553,2.45907795,121870.0,121860.0,1.34589785]
[1754889933156,1.78749375,121870.0,121860.0,1.34589785]
[1754889933356,2.54097375,121870.0,121860.0,1.34589785]
[1754889933663,2.45891795,121870.0,121860.0,1.34589785]
[1754889933965,2.54097375,121870.0,121860.0,1.34589785]
[1754889934665,2.45891795,121870.0,121860.0,1.34589785]
[1754889936262,2.54097385,121870.0,121860.0,1.34589785]
[1754889936461,2.45891795,121870.0,121860.0,1.49259358]
[1754889937463,2.54097385,121870.0,121860.0,1.49259358]
[1754889938461,2.45891795,121870.0,121860.0,1.49259358]
[1754889939263,2.54097385,121870.0,121860.0,1.49259358]
[1754889939759,2.12824087,121870.0,121860.0,0.8512652]
[1754889940266,2.88120087,121870.0,121860.0,0.8512652]
[1754889940558,2.88120087,121870.0,121860.0,0.70456947]
[1754889940763,2.88120087,121870.0,121860.0,0.20456947]
[1754889941856,2.88120087,121870.0,121860.0,0.39517603]
[1754889942865,2.12824087,121870.0,121860.0,0.39517603]
[1754889943064,0.3376694,121850.0,121840.0,0.36110358]
[1754889943265,1.4522694,121850.0,121840.0,0.04664]
[1754889943461,1.4522694,121850.0,121840.0,0.16988439]
[1754889943659,1.4522694,121850.0,121840.0,0.2519424]
[1754889944060,1.4522694,121850.0,121840.0,0.25202287]
[1754889944761,1.4522694,121850.0,121840.0,0.75202287]
[1754889945269,1.8130694,121850.0,121840.0,0.75202287]
[1754889945468,1.0592694,121850.0,121840.0,0.75202287]
[1754889945761,1.0592694,121850.0,121840.0,0.75502287]
[1754889945762,1.8129894,121850.0,121840.0,0.75502287]
[1754889946164,1.8139894,121850.0,121840.0,0.75202287]
[1754889946866,1.82233406,121850.0,121840.0,0.75202287]
[1754889947362,1.82233406,121850.0,121840.0,0.98441025]
[1754889947562,1.82233406,121850.0,121840.0,0.98541025]
[1754889948270,1.82233406,121850.0,121840.0,0.98441025]
[1754889948869,1.06861406,121850.0,121840.0,0.98441025]
[1754889949471,1.82213406,121850.0,121840.0,0.75202287]
[1754889949670,1.82213406,121850.0,121840.0,1.1596351]
[1754889949865,1.06861406,121850.0,121840.0,1.1596351]
[1754889950169,1.82205406,121850.0,121840.0,1.1596351]
[1754889950771,1.82205406,121850.0,121840.0,1.30677644]
[1754889951368,1.06861406,121850.0,121840.0,1.30677644]
[1754889951570,1.82185406,121850.0,121840.0,0.92421287]
[1754889951770,1.82185406,121850.0,121840.0,1.15963986]
[1754889952566,1.06861406,121850.0,121840.0,0.98744986]
[1754889952975,1.82201406,121850.0,121840.0,1.17877471]
[1754889953473,1.06861406,121850.0,121840.0,1.17877471]
[1754889953673,1.82193406,121850.0,121840.0,1.17877471]
[1754889953873,1.82193406,121850.0,121840.0,0.94334772]
[1754889954975,1.82193406,121850.0,121840.0,0.44334772]
[1754889955175,1.06861406,121850.0,121840.0,0.44334772]
[1754889955376,1.06861406,121850.0,121840.0,0.77503907]
[1754889955674,1.82189406,121850.0,121840.0,0.77503907]
[1754889955868,1.8135495,121850.0,121840.0,1.0659309]
[1754889956070,1.11524,121850.0,121840.0,1.15385571]
[1754889956277,0.70759864,121850.0,121840.0,1.07177951]
[1754889956466,0.70759864,121850.0,121840.0,1.36296388]
[1754889956467,0.6994695,121850.0,121840.0,1.36296388]
[1754889956666,1.4532695,121850.0,121840.0,1.36296388]
[1754889957279,0.6994695,121850.0,121840.0,1.03444768]
[1754889957473,0.40891,121850.0,121840.0,1.36296388]
[1754889957675,0.92114,121850.0,121840.0,1.65385571]
[1754889957874,0.6994695,121850.0,121840.0,1.57177951]
[1754889958073,1.4525895,121850.0,121840.0,1.57177951]
[1754889958276,1.4525895,121850.0,121840.0,1.65485571]
[1754889958774,1.4535895,121850.0,121840.0,1.59825466]
[1754889958979,1.37152,121850.0,121840.0,1.59825466]
[1754889959177,0.6174,121850.0,121840.0,1.59825466]
[1754889959379,1.37152,121850.0,121840.0,1.88914649]
[1754889959779,0.001,121850.0,121840.0,2.18003832]
[1754889959974,1.42395795,121870.0,121860.0,0.5696427]
[1754889960176,0.28979795,121880.0,121860.0,1.28355323]
[1754889960475,0.3608,121890.0,121880.0,0.5696293]
[1754889960684,1.11496,121890.0,121880.0,0.86052113]
[1754889960982,1.11496,121890.0,121880.0,1.07892882]
[1754889961185,1.17098,121890.0,121880.0,1.07892882]
[1754889961375,1.17098,121890.0,121880.0,0.87009163]
[1754889961573,1.17098,121890.0,121880.0,1.16098346]
[1754889961777,1.17098,121890.0,121880.0,1.66098346]
[1754889961976,1.11496,121890.0,121880.0,1.66098346]
[1754889962185,0.3608,121890.0,121880.0,1.71061614]
[1754889962380,0.47967,121900.0,121890.0,0.4487325]
[1754889962585,0.3608,121900.0,121890.0,1.10103359]
[1754889962779,1.04391794,121900.0,121890.0,1.31861168]
[1754889963079,0.28979794,121900.0,121890.0,1.40064949]
[1754889963283,1.04391794,121900.0,121890.0,1.40064949]
[1754889963680,1.49466559,121910.0,121900.0,0.5696158]
[1754889963884,2.44964469,121910.0,121900.0,0.5696158]
[1754889964075,1.69656469,121910.0,121900.0,0.29801806]
[1754889964273,2.0370892,121910.0,121900.0,0.34750587]
[1754889964479,2.7913292,121910.0,121900.0,0.20562923]
[1754889964678,2.7912492,121910.0,121900.0,0.20562923]
[1754889965782,2.0370892,121910.0,121900.0,0.20662923]
[1754889966287,2.79945537,121910.0,121900.0,0.20662923]
[1754889966585,2.80045537,121910.0,121900.0,0.20662923]
[1754889966980,2.04621537,121910.0,121900.0,0.20662923]
[1754889967180,2.80333537,121910.0,121900.0,0.20562923]
[1754889968186,2.80329537,121910.0,121900.0,0.20562923]
[1754889968388,2.80329537,121910.0,121900.0,0.25232923]
[1754889968889,2.46277086,121910.0,121900.0,0.73492364]
[1754889969089,1.70769086,121910.0,121900.0,0.81695964]
[1754889969387,2.45336469,121910.0,121900.0,1.24607631]
[1754889969776,1.55468559,121910.0,121900.0,1.24607631]
[1754889969975,2.25234559,121910.0,121900.0,1.24607631]
[1754889970187,1.49866559,121910.0,121900.0,1.24607631]
[1754889970486,2.37021559,121910.0,121900.0,1.24607631]
[1754889970689,2.45224489,121910.0,121900.0,1.24607631]
[1754889970892,2.45224489,121910.0,121900.0,1.74607631]
[1754889970893,2.00841559,121910.0,121900.0,1.74607631]
[1754889971090,2.00841559,121910.0,121900.0,1.4055518]
[1754889971389,2.09044489,121910.0,121900.0,1.59582367]
[1754889972192,1.13586559,121910.0,121900.0,1.93634818]
[1754889972382,1.33476489,121910.0,121900.0,1.74217311]
[1754889972585,2.08808489,121910.0,121900.0,1.55190124]
[1754889972793,2.08808489,121910.0,121900.0,1.08864124]
[1754889972984,1.69656489,121910.0,121900.0,1.00660524]
[1754889973283,2.44980489,121910.0,121900.0,1.3235158]
[1754889973488,2.44880489,121910.0,121900.0,0.8235158]
[1754889974184,1.69556489,121910.0,121900.0,0.8235158]
[1754889974386,2.44864489,121910.0,121900.0,0.8235158]
[1754889974596,2.45064489,121910.0,121900.0,0.8235158]
[1754889975584,1.69856489,121910.0,121900.0,0.7534358]
[1754889975892,2.45184489,121910.0,121900.0,0.5955258]
[1754889976993,2.45184489,121910.0,121900.0,0.7534358]
[1754889978492,2.45156489,121910.0,121900.0,0.8235158]
[1754889978795,2.45056489,121910.0,121900.0,1.01378767]
[1754889979796,2.45056489,121910.0,121900.0,0.8235158]
[1754889981197,1.49666559,121910.0,121900.0,1.24607641]
[1754889981495,2.24922559,121910.0,121900.0,1.24607641]
[1754889981693,1.88842559,121910.0,121900.0,1.24607641]
[1754889981893,1.88842559,121910.0,121900.0,1.74607641]
[1754889982094,0.75456,121910.0,121900.0,1.74607641]
[1754889982494,0.002,121910.0,121900.0,1.74607641]
[1754889982694,0.7524,121910.0,121900.0,1.63545481]
[1754889983289,0.7524,121910.0,121900.0,1.91014481]
[1754889984886,0.7524,121910.0,121900.0,1.91114481]
[1754889985997,0.7524,121910.0,121900.0,1.91214481]
[1754889986989,0.5256,121920.0,121910.0,0.0820295]
[1754889987193,0.25442,121920.0,121910.0,1.07625737]
[1754889987502,0.6988361,121930.0,121920.0,0.5452828]
[1754889987696,1.4511561,121930.0,121920.0,0.88580731]
[1754889987901,1.36914,121930.0,121920.0,1.09731566]
[1754889988201,1.36914,121930.0,121920.0,1.12924789]
[1754889988402,1.36914,121930.0,121920.0,1.31969125]
[1754889988700,1.4511561,121930.0,121920.0,1.31969125]
[1754889989003,1.46020998,121930.0,121920.0,1.31969125]
[1754889989599,1.46020998,121930.0,121920.0,1.32009317]